bitfinex-derivatives/quotes_BTCF0:USTF0_20250803
["timestamp","ask_amount","ask_price","bid_price","bid_amount"]
[1754239416149,0.96604095,114020.0,114010.0,1.82564204]
[1754239416346,0.96604095,114020.0,114010.0,2.43809418]
[1754239422056,0.96604095,114020.0,114010.0,1.82564204]
[1754239422253,0.96604095,114020.0,114010.0,2.43809418]
[1754239423758,0.35358881,114020.0,114010.0,2.43809418]
[1754239424056,0.96604095,114020.0,114010.0,2.43809418]
[1754239425055,0.96604095,114020.0,114010.0,1.82564204]
[1754239425252,0.96604095,114020.0,114010.0,2.43809418]
[1754239429761,0.96604095,114020.0,114010.0,1.82564204]
[1754239429957,0.96604095,114020.0,114010.0,2.43809418]
[1754239431459,0.96604095,114020.0,114010.0,1.82564204]
[1754239431763,0.96604095,114020.0,114010.0,2.43809418]
[1754239438268,0.96604095,114020.0,114010.0,1.82564204]
[1754239438470,0.96604095,114020.0,114010.0,2.43809418]
[1754239438671,0.96604095,114020.0,114010.0,1.82564204]
[1754239438967,0.96604095,114020.0,114010.0,2.43789418]
[1754239442676,0.35358881,114020.0,114010.0,2.43789418]
[1754239442879,0.96616871,114020.0,114010.0,2.43789418]
[1754239446174,0.04933537,114020.0,114010.0,2.43789418]
[1754239446378,0.04933537,114020.0,114010.0,2.79869418]
[1754239447678,0.02359537,114020.0,114010.0,2.79869418]
[1754239448475,0.04956537,114020.0,114010.0,2.79869418]
[1754239450185,0.02359537,114020.0,114010.0,2.79869418]
[1754239451880,0.02359537,114020.0,114010.0,3.85376232]
[1754239452079,0.0254,114040.0,114030.0,0.1753958]
[1754239452283,0.04898004,114040.0,114030.0,2.02898008]
[1754239452484,0.04898004,114040.0,114030.0,1.41652794]
[1754239453489,0.05098004,114040.0,114030.0,1.41652794]
[1754239454877,0.04998004,114040.0,114030.0,0.8040758]
[1754239455077,0.17909004,114040.0,114030.0,1.41652794]
[1754239455784,0.17809004,114040.0,114030.0,1.41652794]
[1754239457379,0.17809004,114040.0,114030.0,0.8040758]
[1754239457684,0.79054218,114040.0,114030.0,1.41652794]
[1754239458288,0.17809004,114040.0,114030.0,1.41652794]
[1754239459284,0.15451,114040.0,114030.0,1.41652794]
[1754239462088,0.15451,114040.0,114030.0,1.68372794]
[1754239462385,0.17804839,114040.0,114030.0,1.68372794]
[1754239465586,0.17804839,114040.0,114030.0,1.0712758]
[1754239465890,0.17804839,114040.0,114030.0,1.68372794]
[1754239466391,0.17804839,114040.0,114030.0,1.68472794]
[1754239467991,0.17804839,114040.0,114030.0,1.68672794]
[1754239470392,0.17804839,114040.0,114030.0,2.89988794]
[1754239485596,0.08270839,114040.0,114030.0,2.89988794]
[1754239485796,0.04893839,114040.0,114030.0,3.51234008]
[1754239486095,0.04893839,114040.0,114030.0,2.2874358]
[1754239486498,0.04893839,114040.0,114030.0,3.51234008]
[1754239486998,0.04893839,114040.0,114030.0,2.89988794]
[1754239488703,0.04893839,114040.0,114030.0,3.51234008]
[1754239489302,0.02353839,114040.0,114030.0,3.51234008]
[1754239489499,0.04758839,114040.0,114030.0,3.51234008]
[1754239497708,0.04758839,114040.0,114030.0,2.2874358]
[1754239498008,0.04758839,114040.0,114030.0,3.51234008]
[1754239499513,0.04758839,114040.0,114030.0,2.89988794]
[1754239500310,0.04758839,114040.0,114030.0,2.2874358]
[1754239500610,0.04758839,114040.0,114030.0,2.89988794]
[1754239500802,0.04758839,114040.0,114030.0,3.51234008]
[1754239501405,0.02353839,114040.0,114030.0,3.51234008]
[1754239501605,0.04758839,114040.0,114030.0,3.62750408]
[1754239502611,0.02353839,114040.0,114030.0,2.4025998]
[1754239502811,0.02353839,114040.0,114030.0,3.62750408]
[1754239503105,0.04758839,114040.0,114030.0,3.62750408]
[1754239503305,0.02353839,114040.0,114030.0,3.62750408]
[1754239503906,0.02405,114050.0,114040.0,0.1753804]
[1754239504109,0.0476183,114050.0,114040.0,1.14863254]
[1754239504911,0.0476183,114050.0,114040.0,0.8033804]
[1754239505107,0.0476183,114050.0,114040.0,1.41583254]
[1754239505303,0.0476183,114050.0,114040.0,1.53099654]
[1754239507018,0.0476183,114050.0,114040.0,1.53199654]
[1754239507319,0.0476183,114050.0,114040.0,1.53299654]
[1754239526537,0.0476183,114050.0,114040.0,0.9205444]
[1754239526735,0.0476183,114050.0,114040.0,1.53299654]
[1754239531138,0.0476183,114050.0,114040.0,0.9205444]
[1754239531330,0.0476183,114050.0,114040.0,1.53299654]
[1754239532931,0.0476183,114050.0,114040.0,2.74595654]
[1754239533536,0.66007044,114050.0,114040.0,2.74595654]
[1754239533733,0.0476183,114050.0,114040.0,2.74595654]
[1754239533934,0.66007044,114050.0,114040.0,2.74595654]
[1754239535540,0.0476183,114050.0,114040.0,2.74595654]
[1754239535730,0.66007044,114050.0,114040.0,2.74595654]
[1754239536742,0.70125044,114050.0,114040.0,2.74595654]
[1754239537641,0.76222044,114050.0,114040.0,2.74595654]
[1754239537943,0.69430044,114050.0,114040.0,2.74595654]
[1754239538945,0.0818483,114050.0,114040.0,2.74595654]
[1754239540332,0.0476183,114050.0,114040.0,2.74595654]
[1754239543946,0.0235683,114050.0,114040.0,2.74595654]
[1754239545540,0.0469483,114050.0,114040.0,2.74595654]
[1754239552156,0.0469483,114050.0,114040.0,2.74495654]
[1754239552450,0.0469483,114050.0,114040.0,2.74595654]
[1754239552850,0.0469483,114050.0,114040.0,2.74495654]
[1754239553042,0.0469483,114050.0,114040.0,2.74595654]
[1754239553452,0.0469483,114050.0,114040.0,2.74395654]
[1754239557752,0.0469483,114050.0,114040.0,2.74595654]
[1754239558444,0.0469483,114050.0,114040.0,2.74695654]
[1754239559061,0.0469483,114050.0,114040.0,2.74595654]
[1754239559655,0.0469483,114050.0,114040.0,2.74395654]
[1754239561656,0.0469483,114050.0,114040.0,2.74495654]
[1754239562456,0.0469483,114050.0,114040.0,2.74395654]
[1754239565158,0.0469483,114050.0,114040.0,2.74495654]
[1754239565859,0.0469483,114050.0,114040.0,2.74395654]
[1754239566059,0.0469483,114050.0,114040.0,2.74595654]
[1754239566557,0.0469483,114050.0,114040.0,2.74395654]
[1754239571658,0.0469483,114050.0,114040.0,2.74495654]
[1754239572562,0.02338,114050.0,114040.0,2.74395654]
[1754239574850,0.02338,114050.0,114040.0,2.74495654]
[1754239575364,0.02338,114050.0,114040.0,2.74395654]
[1754239580566,0.02338,114050.0,114040.0,3.10475654]
[1754239582062,0.02338,114050.0,114040.0,3.10575654]
[1754239582464,0.0470595,114050.0,114040.0,3.10575654]
[1754239583471,0.0470595,114050.0,114040.0,3.10775654]
[1754239587467,0.0490795,114050.0,114040.0,3.10775654]
[1754239588571,0.0490795,114050.0,114040.0,3.10675654]
[1754239588772,0.0490795,114050.0,114040.0,3.10775654]
[1754239592477,0.0254,114050.0,114040.0,3.10775654]
[1754239596880,0.0254,114050.0,114040.0,3.10875654]
[1754239597383,0.0254,114050.0,114040.0,2.4963044]
[1754239597583,0.0254,114050.0,114040.0,3.10875654]
[1754239597783,0.0254,114050.0,114040.0,3.10775654]
[1754239598083,0.0254,114050.0,114040.0,3.10875654]
[1754239598585,0.0254,114050.0,114040.0,2.4963044]
[1754239598783,0.0254,114050.0,114040.0,3.10675654]
[1754239602286,0.0254,114050.0,114040.0,3.10575654]
[1754239602486,0.0254,114050.0,114040.0,3.10675654]
[1754239609090,0.0254,114050.0,114040.0,2.4943044]
[1754239609293,0.0254,114050.0,114040.0,2.7613444]
[1754239609492,0.0254,114050.0,114040.0,3.37379654]
[1754239611891,0.0254,114050.0,114040.0,2.65219654]
[1754239612086,0.89998544,114070.0,114050.0,0.0876768]
[1754239612294,0.02299,114060.0,114050.0,0.6676806]
[1754239612598,0.1453371,114060.0,114050.0,0.9347206]
[1754239612801,0.1706871,114060.0,114050.0,0.9347206]
[1754239613500,0.1706871,114060.0,114050.0,1.54717274]
[1754239615106,0.78313924,114060.0,114050.0,1.54717274]
[1754239615402,0.78313924,114060.0,114050.0,1.66233674]
[1754239615902,0.1706871,114060.0,114050.0,1.92953674]
[1754239617099,0.1706871,114060.0,114050.0,1.3170846]
[1754239617304,0.1706871,114060.0,114050.0,1.92953674]
[1754239623515,0.1706871,114060.0,114050.0,3.14237674]
[1754239630026,0.1706871,114060.0,114050.0,2.78157674]
[1754239630319,0.78313924,114060.0,114050.0,3.14237674]
[1754239630824,0.1706871,114060.0,114050.0,3.14237674]
[1754239631118,0.78313924,114060.0,114050.0,3.14237674]
[1754239631920,0.1706871,114060.0,114050.0,3.14237674]
[1754239642433,0.1461571,114060.0,114050.0,3.14237674]
[1754239642821,0.0466571,114060.0,114050.0,3.14237674]
[1754239644133,0.0466571,114060.0,114050.0,2.5299246]
[1754239644632,0.95743884,114060.0,114050.0,2.081327]
[1754239645030,0.95743884,114060.0,114050.0,1.814407]
[1754239645233,1.93069098,114060.0,114050.0,2.037489]
[1754239646533,1.93069098,114060.0,114050.0,1.595204]
[1754239646830,1.93069098,114060.0,114050.0,1.862124]
[1754239647625,1.93269098,114060.0,114050.0,2.0374889]
[1754239649835,1.93369098,114060.0,114050.0,2.0374889]
[1754239650535,1.93069098,114060.0,114050.0,2.0374889]
[1754239650832,1.93369098,114060.0,114050.0,2.0374889]
[1754239651238,1.93169098,114060.0,114050.0,2.0374889]
[1754239651440,1.93469098,114060.0,114050.0,2.0374889]
[1754239652338,1.93369098,114060.0,114050.0,2.0374889]
[1754239652533,1.93569098,114060.0,114050.0,2.0374889]
[1754239657343,1.93369098,114060.0,114050.0,2.0374889]
[1754239659239,1.93269098,114060.0,114050.0,2.0374889]
[1754239659739,1.93269098,114060.0,114050.0,1.7705689]
[1754239659942,1.93269098,114060.0,114050.0,2.0374889]
[1754239661040,1.93369098,114060.0,114050.0,2.0374889]
[1754239662642,0.7087867,114060.0,114050.0,2.0374889]
[1754239662842,1.32023884,114060.0,114050.0,2.0374889]
[1754239663136,1.32223884,114060.0,114050.0,2.0374889]
[1754239663345,1.32223884,114060.0,114050.0,1.7702889]
[1754239664244,0.7097867,114060.0,114050.0,1.7702889]
[1754239664442,1.32223884,114060.0,114050.0,1.7702889]
[1754239664944,1.32223884,114060.0,114050.0,2.38274104]
[1754239665448,1.32023884,114060.0,114050.0,2.38274104]
[1754239666040,1.32023884,114060.0,114050.0,1.16990104]
[1754239666345,1.32123884,114060.0,114050.0,1.16990104]
[1754239666545,0.96043884,114060.0,114050.0,1.16990104]
[1754239666732,0.95843884,114060.0,114050.0,1.16990104]
[1754239667241,1.31923884,114060.0,114050.0,1.16990104]
[1754239667444,1.32023884,114060.0,114050.0,1.16990104]
[1754239668046,0.95943884,114060.0,114050.0,1.16990104]
[1754239668245,0.89536884,114060.0,114050.0,1.16990104]
[1754239668440,0.95861884,114060.0,114050.0,1.16990104]
[1754239669350,0.95861884,114060.0,114050.0,1.43710104]
[1754239670149,0.3461667,114060.0,114050.0,1.43710104]
[1754239670351,0.95861884,114060.0,114050.0,1.43710104]
[1754239670649,0.95861884,114060.0,114050.0,1.79790104]
[1754239671147,0.95861884,114060.0,114050.0,1.43710104]
[1754239671355,0.95861884,114060.0,114050.0,1.79790104]
[1754239671853,0.95761884,114060.0,114050.0,1.79790104]
[1754239672853,0.95861884,114060.0,114050.0,1.79790104]
[1754239673547,0.3461667,114060.0,114050.0,1.79790104]
[1754239673747,0.95861884,114060.0,114050.0,1.79790104]
[1754239673949,0.95861884,114060.0,114050.0,1.43710104]
[1754239674155,0.95861884,114060.0,114050.0,1.79790104]
[1754239674950,0.83645884,114060.0,114050.0,1.79790104]
[1754239675453,0.86867884,114060.0,114050.0,1.79790104]
[1754239675656,0.95873884,114060.0,114050.0,1.79790104]
[1754239677054,0.3462867,114060.0,114050.0,1.79790104]
[1754239677258,0.95873884,114060.0,114050.0,1.79790104]
[1754239677450,0.3462867,114060.0,114050.0,1.79790104]
[1754239677658,0.95873884,114060.0,114050.0,1.79790104]
[1754239678262,0.95873884,114060.0,114050.0,1.1854489]
[1754239678451,0.95873884,114060.0,114050.0,1.43710104]
[1754239680457,1.31953884,114060.0,114050.0,1.43710104]
[1754239681058,0.95873884,114060.0,114050.0,1.79790104]
[1754239681262,0.95873884,114060.0,114050.0,1.1854489]
[1754239681557,0.95873884,114060.0,114050.0,1.43710104]
[1754239682761,1.31953884,114060.0,114050.0,1.43710104]
[1754239683762,1.31953884,114060.0,114050.0,0.8246489]
[1754239684860,0.95873884,114060.0,114050.0,0.8246489]
[1754239692965,1.31953884,114060.0,114050.0,0.8246489]
[1754239693365,1.93199098,114060.0,114050.0,0.8246489]
[1754239694162,1.93199098,114060.0,114050.0,0.8245689]
[1754239694467,1.93099098,114060.0,114050.0,0.8245689]
[1754239695370,1.92999098,114060.0,114050.0,0.8245689]
[1754239695566,1.93099098,114060.0,114050.0,0.8245689]
[1754239700870,1.57019098,114060.0,114050.0,0.8245689]
[1754239701072,1.93099098,114060.0,114050.0,0.8245689]
[1754239712778,1.57019098,114060.0,114050.0,0.8245689]
[1754239713079,1.93099098,114060.0,114050.0,0.8245689]
[1754239730604,0.7060867,114060.0,114050.0,0.8245689]
[1754239730795,1.93099098,114060.0,114050.0,0.8245689]
[1754239733000,1.57019098,114060.0,114050.0,0.8245689]
[1754239733302,1.93099098,114060.0,114050.0,0.8245689]
[1754239738401,1.57019098,114060.0,114050.0,0.8245689]
[1754239738705,1.93099098,114060.0,114050.0,0.8245689]
[1754239742801,0.7060867,114060.0,114050.0,0.8245689]
[1754239743014,1.93099098,114060.0,114050.0,0.8245689]
[1754239743207,0.95773884,114060.0,114050.0,0.8245689]
[1754239743408,0.83545884,114060.0,114050.0,1.43702104]
[1754239743609,0.83545864,114060.0,114050.0,1.43702104]
[1754239743914,0.86759864,114060.0,114050.0,1.43702104]
[1754239744116,0.1668171,114060.0,114050.0,1.43702104]
[1754239744311,0.77926924,114060.0,114050.0,1.79782104]
[1754239744507,0.0476571,114060.0,114050.0,1.79782104]
[1754239744707,0.0476571,114060.0,114050.0,1.53062104]
[1754239745213,0.0476571,114060.0,114050.0,1.79782104]
[1754239745912,0.0466571,114060.0,114050.0,1.79782104]
[1754239746515,0.0466571,114060.0,114050.0,1.79882104]
[1754239748611,0.0236671,114060.0,114050.0,1.79882104]
[1754239748815,0.81039874,114070.0,114060.0,0.1753495]
[1754239749016,0.83394196,114070.0,114060.0,0.78780164]
[1754239749215,0.95310196,114070.0,114060.0,0.78780164]
[1754239749815,0.95410196,114070.0,114060.0,1.05500164]
[1754239750316,0.95410196,114070.0,114060.0,1.17016564]
[1754239750616,0.95510196,114070.0,114060.0,1.17016564]
[1754239752018,0.95509471,114070.0,114060.0,1.17016564]
[1754239752321,0.95409471,114070.0,114060.0,1.17016564]
[1754239752510,0.95409471,114070.0,114060.0,1.17116564]
[1754239753013,0.95409471,114070.0,114060.0,1.17988049]
[1754239753206,0.95309471,114070.0,114060.0,1.17988049]
[1754239757018,0.95309471,114070.0,114060.0,0.56742835]
[1754239757320,0.34064257,114070.0,114060.0,0.56742835]
[1754239757520,0.95309471,114070.0,114060.0,0.56742835]
[1754239759124,1.31389471,114070.0,114060.0,0.56742835]
[1754239759622,0.70144257,114070.0,114060.0,0.56742835]
[1754239759822,1.31389471,114070.0,114060.0,0.56742835]
[1754239761826,1.31389471,114070.0,114060.0,0.56642835]
[1754239762126,1.31489471,114070.0,114060.0,0.56642835]
[1754239762419,1.31589471,114070.0,114060.0,0.56642835]
[1754239765926,1.31589471,114070.0,114060.0,1.17888049]
[1754239766527,1.31589471,114070.0,114060.0,0.56642835]
[1754239766827,0.95509471,114070.0,114060.0,0.56642835]
[1754239768329,0.34264257,114070.0,114060.0,0.56642835]
[1754239768529,0.95509471,114070.0,114060.0,0.56642835]
[1754239768729,0.95509471,114070.0,114060.0,1.17888049]
[1754239769029,0.77974811,114070.0,114060.0,1.17888049]
[1754239769525,0.16729597,114070.0,114060.0,1.17888049]
[1754239769721,0.16729597,114070.0,114060.0,1.53968049]
[1754239769926,0.77974811,114070.0,114060.0,1.53968049]
[1754239770236,0.16729597,114070.0,114060.0,0.92722835]
[1754239770439,0.16729597,114070.0,114060.0,1.53968049]
[1754239770732,0.77974811,114070.0,114060.0,1.53968049]
[1754239771031,0.77874811,114070.0,114060.0,1.54068049]
[1754239771233,0.16629597,114070.0,114060.0,1.54068049]
[1754239771537,0.77874811,114070.0,114060.0,1.54068049]
[1754239771727,0.77774811,114070.0,114060.0,1.54068049]
[1754239772129,0.77874811,114070.0,114060.0,1.53968049]
[1754239772429,0.16729597,114070.0,114060.0,1.53968049]
[1754239772626,0.77974811,114070.0,114060.0,0.92722835]
[1754239772823,0.77974811,114070.0,114060.0,1.53968049]
[1754239773132,0.16729597,114070.0,114060.0,1.53968049]
[1754239773329,0.77974811,114070.0,114060.0,1.53968049]
[1754239773530,0.77874811,114070.0,114060.0,1.53968049]
[1754239773832,0.77874811,114070.0,114060.0,0.92722835]
[1754239774035,0.77874811,114070.0,114060.0,1.53968049]
[1754239774235,0.77774811,114070.0,114060.0,1.54068049]
[1754239774938,0.77774811,114070.0,114060.0,0.92822835]
[1754239775237,0.77774811,114070.0,114060.0,1.54068049]
[1754239775536,0.16529597,114070.0,114060.0,1.54068049]
[1754239775731,0.77774811,114070.0,114060.0,1.54068049]
[1754239776332,0.16529597,114070.0,114060.0,1.54068049]
[1754239776533,0.77774811,114070.0,114060.0,1.54068049]
[1754239776835,0.71505811,114070.0,114060.0,1.54068049]
[1754239777238,0.77394811,114070.0,114060.0,1.54068049]
[1754239778538,0.16149597,114070.0,114060.0,1.54068049]
[1754239778733,0.77394811,114070.0,114060.0,1.54068049]
[1754239779837,0.71505811,114070.0,114060.0,1.54068049]
[1754239780039,0.77394811,114070.0,114060.0,1.54068049]
[1754239782041,0.16149597,114070.0,114060.0,1.54068049]
[1754239782336,0.77394811,114070.0,114060.0,1.54068049]
[1754239782730,0.77394811,114070.0,114060.0,1.17988049]
[1754239782932,0.77394811,114070.0,114060.0,1.54068049]
[1754239783533,0.16149597,114070.0,114060.0,1.54068049]
[1754239783736,0.75005811,114070.0,114060.0,1.54068049]
[1754239784038,0.77450811,114070.0,114060.0,1.54068049]
[1754239784250,0.16205597,114070.0,114060.0,0.92822835]
[1754239784448,0.16205597,114070.0,114060.0,1.54068049]
[1754239787051,0.16205147,114070.0,114060.0,1.54068049]
[1754239787950,0.16205147,114070.0,114060.0,0.92822835]
[1754239788343,0.16205147,114070.0,114060.0,1.54068049]
[1754239790250,0.07827147,114070.0,114060.0,1.54068049]
[1754239791151,0.11348147,114070.0,114060.0,1.54068049]
[1754239792154,0.07827147,114070.0,114060.0,1.54068049]
[1754239793554,0.07827147,114070.0,114060.0,2.15313263]
[1754239793755,0.07827147,114070.0,114060.0,1.54068049]
[1754239793951,0.07827147,114070.0,114060.0,0.92822835]
[1754239794149,0.07827147,114070.0,114060.0,1.54068049]
[1754239795657,0.16312147,114070.0,114060.0,0.92822835]
[1754239795956,0.13867147,114070.0,114060.0,1.53968049]
[1754239796150,0.13867147,114070.0,114060.0,1.54068049]
[1754239796151,0.10346147,114070.0,114060.0,1.54068049]
[1754239796561,0.10346147,114070.0,114060.0,2.15313263]
[1754239797065,0.10346147,114070.0,114060.0,1.54068049]
[1754239798056,0.13867147,114070.0,114060.0,1.54068049]
[1754239798460,0.16312147,114070.0,114060.0,1.54068049]
[1754239801963,0.10346147,114070.0,114060.0,1.54068049]
[1754239802166,0.10346147,114070.0,114060.0,2.15313263]
[1754239802360,0.07827147,114070.0,114060.0,2.15313263]
[1754239803267,0.07827147,114070.0,114060.0,1.53968049]
[1754239803470,0.07827147,114070.0,114060.0,1.54068049]
[1754239803868,0.07827147,114070.0,114060.0,2.15313263]
[1754239804968,0.04613147,114070.0,114060.0,2.15313263]
[1754239806669,0.08134147,114070.0,114060.0,2.15313263]
[1754239807865,0.04613147,114070.0,114060.0,2.15313263]
[1754239809167,0.04613147,114070.0,114060.0,0.92822835]
[1754239809373,0.04613147,114070.0,114060.0,2.15313263]
[1754239810178,0.02353147,114070.0,114060.0,2.15313263]
[1754239810473,0.02353147,114070.0,114060.0,1.88593263]
[1754239810673,0.04629147,114070.0,114060.0,1.88593263]
[1754239812569,0.02353147,114070.0,114060.0,1.88593263]
[1754239812776,0.04629147,114070.0,114060.0,1.88593263]
[1754239820180,0.04629147,114070.0,114060.0,2.15313263]
[1754239822482,0.04629147,114070.0,114060.0,0.92822835]
[1754239822782,0.02276,114070.0,114060.0,2.15313263]
[1754239826482,0.02276,114070.0,114060.0,2.15513263]
[1754239827391,0.02276,114070.0,114060.0,2.15713263]
[1754239828183,0.02276,114070.0,114060.0,2.15513263]
[1754239829691,0.02276,114070.0,114060.0,2.15313263]
[1754239829894,0.02276,114070.0,114060.0,2.15413263]
[1754239832582,0.02276,114080.0,114060.0,1.97878313]
[1754239832788,0.15925973,114080.0,114070.0,1.18780274]
[1754239835080,0.04621973,114080.0,114070.0,1.54860274]
[1754239835277,0.04621973,114080.0,114070.0,1.73473794]
[1754239835792,0.04621973,114080.0,114070.0,1.73573794]
[1754239836280,0.04621973,114080.0,114070.0,1.73473794]
[1754239836486,0.04621973,114080.0,114070.0,1.1232858]
[1754239836789,0.04621973,114080.0,114070.0,1.73573794]
[1754239837093,0.04621973,114080.0,114070.0,1.73673794]
[1754239837891,0.04621973,114080.0,114070.0,2.00293794]
[1754239838090,0.04621973,114080.0,114070.0,2.00393794]
[1754239838586,0.12469973,114080.0,114070.0,2.00393794]
[1754239838786,0.15925973,114080.0,114070.0,2.00393794]
[1754239842598,0.15925973,114080.0,114070.0,3.21657794]
[1754239844402,0.13620973,114080.0,114070.0,3.21657794]
[1754239845193,0.07066973,114080.0,114070.0,3.21657794]
[1754239845398,0.04621973,114080.0,114070.0,3.21657794]
[1754239845599,0.16616973,114080.0,114070.0,3.21717794]
[1754239846403,0.16616973,114080.0,114070.0,3.21617794]
[1754239846606,0.16616973,114080.0,114070.0,3.21717794]
[1754239846902,0.16616973,114080.0,114070.0,2.6047258]
[1754239847099,0.16616973,114080.0,114070.0,3.21717794]
[1754239851604,0.16616973,114080.0,114070.0,3.21705794]
[1754239855407,0.16616973,114080.0,114070.0,2.6046058]
[1754239855604,0.16616973,114080.0,114070.0,3.21705794]
[1754239857608,0.04621973,114080.0,114070.0,3.21705794]
[1754239861906,0.02345973,114080.0,114070.0,3.21705794]
[1754239862211,0.04780973,114080.0,114070.0,3.21705794]
[1754239870115,0.04780973,114080.0,114070.0,3.21905794]
[1754239870814,0.04780973,114080.0,114070.0,2.6056058]
[1754239871111,0.04780973,114080.0,114070.0,3.21805794]
[1754239871606,0.04780973,114080.0,114070.0,3.21705794]
[1754239871808,0.04780973,114080.0,114070.0,2.6046058]
[1754239872003,0.04780973,114080.0,114070.0,3.21705794]
[1754239872611,0.02435,114080.0,114070.0,3.21705794]
[1754239874814,0.02435,114080.0,114070.0,2.6046058]
[1754239875115,0.02435,114080.0,114070.0,3.21705794]
[1754239876308,0.0559,114080.0,114070.0,3.21705794]
[1754239876615,0.13984,114080.0,114070.0,3.21705794]
[1754239878410,0.07942,114080.0,114070.0,3.21705794]
[1754239878610,0.0559,114080.0,114070.0,3.21705794]
[1754239878811,0.0559,114080.0,114070.0,2.6046058]
[1754239879120,0.0559,114080.0,114070.0,3.21705794]
[1754239879507,0.0559,114080.0,114070.0,2.6046058]
[1754239879711,0.0559,114080.0,114070.0,3.21705794]
[1754239880618,0.02435,114080.0,114070.0,3.21705794]
[1754239880820,0.02435,114080.0,114070.0,2.6046058]
[1754239881018,0.02435,114080.0,114070.0,3.21705794]
[1754239884422,0.12049511,114090.0,114070.0,3.08555654]
[1754239884623,0.16884801,114090.0,114080.0,1.07388934]
[1754239885120,0.16884801,114090.0,114080.0,1.34108934]
[1754239886126,0.16984801,114090.0,114080.0,1.34108934]
[1754239887127,0.05435801,114090.0,114080.0,1.45625334]
[1754239888327,0.05435801,114090.0,114080.0,0.8438012]
[1754239888528,0.16984801,114090.0,114080.0,0.8438012]
[1754239888929,0.16984801,114090.0,114080.0,1.45625334]
[1754239889129,0.16984801,114090.0,114080.0,0.8438012]
[1754239889331,0.16984801,114090.0,114080.0,1.45625334]
[1754239890032,0.16984801,114090.0,114080.0,1.18905334]
[1754239891035,0.10942801,114090.0,114080.0,1.18905334]
[1754239891529,0.16984801,114090.0,114080.0,1.18905334]
[1754239892132,0.05435801,114090.0,114080.0,1.18905334]
[1754239892526,0.05435801,114090.0,114080.0,1.80150548]
[1754239892722,0.05435801,114090.0,114080.0,1.18905334]
[1754239892934,0.05435801,114090.0,114080.0,0.5766012]
[1754239893136,0.05435801,114090.0,114080.0,1.18905334]
[1754239893542,0.05435801,114090.0,114080.0,1.80150548]
[1754239893844,0.05435801,114090.0,114080.0,1.18905334]
[1754239895546,0.16984801,114090.0,114080.0,0.5766012]
[1754239895848,0.16984801,114090.0,114080.0,1.18905334]
[1754239896238,0.16984801,114090.0,114080.0,0.5766012]
[1754239896448,0.16984801,114090.0,114080.0,1.18905334]
[1754239900953,0.05435801,114090.0,114080.0,1.80150548]
[1754239901154,0.05435801,114090.0,114080.0,0.5766012]
[1754239901452,0.05435801,114090.0,114080.0,1.80150548]
[1754239902453,0.02990511,114090.0,114080.0,1.80250548]
[1754239902753,0.05333864,114090.0,114080.0,1.80350548]
[1754239904549,0.05333864,114090.0,114080.0,0.5786012]
[1754239905056,0.05333864,114090.0,114080.0,1.80350548]
[1754239906042,0.05333864,114090.0,114080.0,1.44270548]
[1754239906249,0.05333864,114090.0,114080.0,1.80250548]
[1754239906449,0.05333864,114090.0,114080.0,1.80350548]
[1754239912350,0.05333864,114090.0,114080.0,1.80250548]
[1754239912760,0.05333864,114090.0,114080.0,1.80350548]
[1754239912957,0.02990511,114090.0,114080.0,1.80350548]
[1754239914058,0.02891511,114090.0,114080.0,1.80350548]
[1754239914256,0.02891511,114090.0,114080.0,1.80250548]
[1754239914463,0.02891511,114090.0,114080.0,1.80350548]
[1754239920964,0.02891511,114090.0,114080.0,1.19105334]
[1754239921169,0.14817511,114090.0,114080.0,1.19105334]
[1754239921571,0.14817511,114090.0,114080.0,0.5786012]
[1754239921770,0.14817511,114090.0,114080.0,1.19105334]
[1754239924675,0.10952511,114090.0,114080.0,0.5786012]
[1754239924976,0.14817511,114090.0,114080.0,1.45977334]
[1754239925875,0.14817511,114090.0,114080.0,1.45877334]
[1754239926064,0.14817511,114090.0,114080.0,1.45977334]
[1754239926675,0.14817511,114090.0,114080.0,1.19105334]
[1754239926871,0.14817511,114090.0,114080.0,1.45997334]
[1754239927065,0.14817511,114090.0,114080.0,1.19105334]
[1754239927469,0.14817511,114090.0,114080.0,1.19005334]
[1754239927671,0.14817511,114090.0,114080.0,1.46009334]
[1754239928578,0.14917511,114090.0,114080.0,1.45909334]
[1754239931372,0.14778511,114090.0,114080.0,1.45909334]
[1754239933077,0.14778511,114090.0,114080.0,1.45809334]
[1754239934080,0.14778511,114090.0,114080.0,1.45909334]
[1754239934769,0.14678511,114090.0,114080.0,1.45909334]
[1754239938677,0.14678511,114090.0,114080.0,2.67149334]
[1754239939683,0.14678511,114090.0,114080.0,2.67049334]
[1754239939883,0.14678511,114090.0,114080.0,2.67149334]
[1754239942485,0.17022376,114090.0,114080.0,2.67149334]
[1754239944983,0.17022376,114090.0,114080.0,2.0590412]
[1754239945183,0.17022376,114090.0,114080.0,2.67149334]
[1754239945584,0.17022376,114090.0,114080.0,2.67349334]
[1754239947084,0.17022376,114090.0,114080.0,2.31269334]
[1754239947291,0.17022376,114090.0,114080.0,2.67349334]
[1754239948285,0.14678511,114090.0,114080.0,2.67349334]
[1754239952594,0.17022639,114090.0,114080.0,2.67349334]
[1754239955700,0.17022639,114090.0,114080.0,2.0610412]
[1754239955901,0.17022639,114090.0,114080.0,2.67349334]
[1754239956402,0.17022639,114090.0,114080.0,2.0610412]
[1754239956594,0.17022639,114090.0,114080.0,2.67349334]
[1754239957196,0.34442969,114090.0,114080.0,2.31181334]
[1754239957402,0.16912639,114090.0,114080.0,2.31181334]
[1754239958506,0.16912639,114090.0,114080.0,2.30981334]
[1754239958805,0.16912639,114090.0,114080.0,2.30881334]
[1754239959007,0.16912639,114090.0,114080.0,1.6963612]
[1754239959303,0.16912639,114090.0,114080.0,2.30881334]
[1754239960206,0.16912639,114090.0,114080.0,1.6963612]
[1754239960507,0.16912639,114090.0,114080.0,2.30881334]
[1754239960704,0.16912639,114090.0,114080.0,2.04065334]
[1754239960906,0.16912639,114090.0,114080.0,2.30913334]
[1754239962609,0.14568511,114090.0,114080.0,2.30913334]
[1754239963909,0.16912121,114090.0,114080.0,1.6966812]
[1754239964108,0.16912121,114090.0,114080.0,2.30913334]
[1754239966011,0.14568511,114090.0,114080.0,2.30913334]
[1754239971901,0.14568511,114090.0,114080.0,2.0574812]
[1754239972107,0.14568511,114090.0,114080.0,2.30913334]
[1754239972721,0.14568511,114090.0,114080.0,2.66993334]
[1754239974612,0.10794919,114090.0,114080.0,2.66993334]
[1754239975710,0.08359919,114090.0,114080.0,2.66993334]
[1754239977008,0.05234919,114090.0,114080.0,2.66993334]
[1754239978614,0.05234919,114090.0,114080.0,2.0574812]
[1754239978815,0.05234919,114090.0,114080.0,2.66993334]
[1754239979715,0.02891511,114090.0,114080.0,2.66993334]
[1754239982929,0.02891511,114090.0,114080.0,2.93713334]
[1754239989122,0.00522511,114090.0,114080.0,3.54958548]
[1754239989726,0.02962511,114090.0,114080.0,3.54958548]
[1754239992425,0.02962511,114090.0,114080.0,2.93713334]
[1754239992732,0.05306143,114090.0,114080.0,3.54958548]
[1754239993226,0.05306143,114090.0,114080.0,2.93713334]
[1754239994032,0.02866143,114090.0,114080.0,3.54958548]
[1754239994239,0.05217143,114090.0,114080.0,3.54958548]